[Event "EYCC Girls-U18 2019"]
[Site "Bratislava"]
[Date "2019.08.10"]
[Round "9.24"]
[White "Koljevic, Nikolina"]
[Black "Tumova, Anna"]
[Result "0-1"]
[ECO "C11"]
[WhiteElo "1960"]
[BlackElo "1722"]
[Annotator "NA RC"]
[PlyCount "110"]
[EventDate "2019.08.02"]
[EventType "swiss"]
[EventCountry "SVK"]
[SourceTitle "playchess.com"]
[Source "ChessBase"]
[SourceQuality "1"]
[TimeControl "40/5400+30:1800+30"]

1. e4 {[%emt 0:00:00]} e6 {[%emt 0:00:00]} 2. d4 {[%emt 0:00:00]} d5 {[%emt 0:00:00]} 3. Nc3 {[%emt 0:00:00]} Nf6 {[%emt 0:00:23]} 4. Bg5 {[%emt 0:00:00]} dxe4 {[%emt 0:00:30]} 5. Nxe4 {[%emt 0:00:02]} Nbd7 {[%emt 0:00:25]} 6. Nf3 {[%emt 0:00:33]} Be7 {[%emt 0:00:47]} 7. Bxf6 {[%emt 0:00:31]} Bxf6 {[%emt 0:02:52]} 8. Bd3 {[%emt 0:01:26]} b6 {[%emt 0:02:24]} 9. c3 {[%emt 0:01:17]} Bb7 {[%emt 0:01:20]} 10. Qe2 {[%emt 0:00:53]} O-O {[%emt 0:03:48]} 11. O-O {[%emt 0:04:00]} Qe7 {[%emt 0:01:54]} 12. Rad1 {[%emt 0:02:22]} c5 {[%emt 0:01:45]} 13. Bb1 {[%emt 0:01:15]} cxd4 {[%emt 0:04:14]} 14. Nxd4 {[%emt 0:00:40]} Nc5 {[%emt 0:03:29]} 15. Rfe1 {[%emt 0:04:38]} Rfd8 {[%emt 0:03:19]} 16. f3 {[%emt 0:04:56]} Nxe4 {[%emt 0:06:01]} 17. Bxe4 {[%emt 0:00:53]} Bd5 {[%emt 0:01:20]} 18. Bxd5 {[%emt 0:08:28]} Rxd5 {[%emt 0:00:54]} 19. Qe4 {[%emt 0:01:11]} Rad8 {[%emt 0:03:05]} 20. f4 {[%emt 0:04:08]} Qc5 {[%emt 0:03:11]} 21. Re2 {[%emt 0:03:34]} Bxd4+ {[%emt 0:02:58]} 22. Rxd4 {[%emt 0:01:24]} Rxd4 {[%emt 0:01:52]} 23. cxd4 {[%emt 0:00:04]} Rxd4 {[%emt 0:01:10]} 24. Qe3 {[%emt 0:00:05]} Rxf4 {[%emt 0:11:59]} 25. Qxc5 {[%emt 0:00:05]} bxc5 {[%emt 0:00:15]} 26. Rc2 {[%emt 0:00:04]} Rf5 {[%emt 0:00:29]} 27. b4 {[%emt 0:00:10]} Kf8 {[%emt 0:00:39]} 28. bxc5 {[%emt 0:00:16]} Ke7 {[%emt 0:00:58]} 29. Rc4 {[%emt 0:01:49]} a5 {[%emt 0:01:35]} 30. c6 {[%emt 0:00:57]} Kd8 {[%emt 0:00:32]} 31. g4 {[%emt 0:02:55]} Rd5 {[%emt 0:04:24]} 32. Rc2 {[%emt 0:00:51]} Kc7 {[%emt 0:01:20]} 33. Kg2 {[%emt 0:01:53]} Rd6 {[%emt 0:01:35]} 34. g5 {[%emt 0:01:04]} f5 {[%emt 0:02:17]} 35. gxf6 {[%emt 0:00:57]} gxf6 {[%emt 0:00:22]} 36. Rc5 {[%emt 0:00:38]} Rd2+ {[%emt 0:00:56]} 37. Kg3 {[%emt 0:00:08]} Rxa2 {[%emt 0:00:14]} 38. Rh5 {[%emt 0:00:09]} Kxc6 {[%emt 0:02:22]} 39. Rh6 {[%emt 0:00:06]} Kd6 {[%emt 0:10:23]} 40. Rxf6 {[%emt 0:00:00]} Rc2 {[%emt 0:00:00]} 41. Rh6 {[%emt 0:00:50]} Rc7 {[%emt 0:00:58]} 42. Rh4 {[%emt 0:01:39]} Kd5 {[%emt 0:01:33]} 43. Ra4 {[%emt 0:00:46]} Ra7 {[%emt 0:00:38]} 44. Kf4 {[%emt 0:00:20]} e5+ {[%emt 0:01:53]} 45. Ke3 {[%emt 0:00:07]} Kc5 {[%emt 0:03:35]} 46. Ke4 {[%emt 0:00:10]} Kb5 {[%emt 0:00:44]} 47. Ra1 {[%emt 0:00:04]} Re7 {[%emt 0:00:42]} 48. Rb1+ {[%emt 0:02:21]} Kc4 {[%emt 0:06:11]} 49. Rc1+ {[%emt 0:00:12]} Kb3 {[%emt 0:01:24]} 50. Rb1+ {[%emt 0:00:37]} Ka2 {[%emt 0:01:23]} 51. Rb5 {[%emt 0:00:53]} a4 {[%emt 0:00:51]} 52. Ra5 {[%emt 0:00:15]} a3 {[%emt 0:00:42]} 53. Rb5 {[%emt 0:00:33]} Rg7 {[%emt 0:11:43]} 54. Rxe5 {[%emt 0:01:30]} Rg2 {[%emt 0:01:20]} 55. Rh5 {[%emt 0:00:18]} Kb1 {[%emt 0:00:49]} 0-1